bitfinex-derivatives/quotes_ETHF0:USTF0_20260303
["timestamp","ask_amount","ask_price","bid_price","bid_amount"]
[1772510674661,0.0062018,2010.9,2010.2,0.57281846]
[1772510675264,0.55940409,2010.9,2010.2,0.57281846]
[1772510692284,0.0062018,2010.9,2010.2,0.57281846]
[1772510693783,0.57457403,2010.9,2010.2,0.57281846]
[1772510695782,0.57457403,2010.9,2010.3,0.53647703]
[1772510700584,0.57457403,2010.9,2010.5,0.53647703]
[1772510700987,0.57457403,2010.9,2010.4,1.97944638]
[1772510701178,0.57457403,2010.9,2010.4,1.44296935]
[1772510701583,0.57457403,2010.9,2010.4,1.97944638]
[1772510701979,0.57457403,2010.9,2010.2,1.44296935]
[1772510702187,0.57457403,2010.9,2009.9,0.2488]
[1772510702188,0.56837223,2010.5,2010.0,0.53647703]
[1772510703385,0.56837223,2010.5,2009.8,0.53647703]
[1772510704589,0.56837223,2010.8,2010.2,0.53647703]
[1772510705688,0.56837223,2010.8,2009.8,2.07819975]
[1772510705689,0.56837223,2010.8,2009.9,0.53647703]
[1772510705993,0.56837223,2010.8,2009.7,0.54059855]
[1772510711794,0.56837223,2010.8,2009.9,0.53647703]
[1772510712492,0.56837223,2010.8,2010.1,0.53647703]
[1772510718198,0.56837223,2010.8,2010.0,6.518]
[1772510718700,0.56837223,2010.8,2009.8,0.56700648]
[1772510719405,0.56837223,2010.8,2010.0,0.56700648]
[1772510719697,0.56222429,2010.9,2010.2,0.56700648]
[1772510720300,0.56222429,2010.9,2010.3,0.56700648]
[1772510721499,0.0062018,2010.9,2010.3,0.56700648]
[1772510723201,0.56222429,2010.9,2010.3,0.56700648]
[1772510726004,0.0062018,2010.9,2010.3,0.56700648]
[1772510726197,0.56222429,2010.9,2010.3,0.56700648]
[1772510727107,0.56222429,2010.9,2010.2,0.56700648]
[1772510728608,0.56222429,2010.9,2010.3,2.01012191]
[1772510728812,0.56222429,2010.9,2010.4,0.56700648]
[1772510729308,0.56222429,2010.9,2010.3,1.44311543]
[1772510730008,0.56222429,2010.9,2010.2,0.56700648]
[1772510732009,0.56222429,2010.9,2010.4,0.56700648]
[1772510733408,0.56222429,2010.9,2010.2,0.56700648]
[1772510735708,0.0062018,2010.9,2010.4,0.56700648]
[1772510735911,0.56222429,2010.9,2010.4,0.56700648]
[1772510739717,0.0062018,2010.9,2010.4,0.56700648]
[1772510742920,0.56222429,2010.9,2010.4,0.56700648]
[1772510743718,0.56222429,2010.9,2010.3,0.56700648]
[1772510743918,0.56222429,2010.9,2010.1,0.56700648]
[1772510745117,0.0062018,2010.9,2010.1,0.56700648]
[1772510746227,0.0062018,2010.9,2010.3,0.56700648]
[1772510746723,0.55602249,2011.7,2010.3,0.56700648]
[1772510746924,0.55602249,2011.7,2010.8,0.56700648]
[1772510747129,13.0300044,2012.2,2011.0,0.56700648]
[1772510747429,0.55602249,2012.1,2011.0,0.56700648]
[1772510747829,0.56014406,2012.1,2011.0,0.56700648]
[1772510748225,0.56014406,2012.1,2011.2,0.59560429]
[1772510748424,0.56014406,2012.1,2011.2,0.60092824]
[1772510751924,0.56014406,2012.1,2011.2,0.00532395]
[1772510752226,0.56014406,2012.1,2011.2,0.60092824]
[1772510755633,0.53879264,2012.0,2011.2,0.60092824]
[1772510759840,0.53879264,2012.0,2011.2,0.00532395]
[1772510760241,0.53879264,2012.0,2010.7,0.59560429]
[1772510760542,0.53879264,2012.0,2010.2,6.515]
[1772510760543,0.53879264,2011.8,2010.5,0.59560429]
[1772510761141,0.53879264,2011.8,2010.5,0.60109511]
[1772510761743,0.53879264,2011.8,2010.7,0.59560429]
[1772510764343,0.53879264,2011.8,2010.6,0.59560429]
[1772510769247,0.53879264,2011.6,2010.6,0.59560429]
[1772510769442,0.53879264,2011.4,2010.6,0.59560429]
[1772510770848,0.53879264,2011.2,2010.6,0.59560429]
[1772510777650,0.57863089,2011.1,2010.6,0.59560429]
[1772510779447,0.24858,2011.7,2010.6,0.59560429]
[1772510779448,0.5802697,2011.7,2010.6,0.59560429]
[1772510779749,0.5802697,2011.6,2010.6,0.59560429]
[1772510780351,0.5802697,2011.5,2010.6,0.59560429]
[1772510780553,0.5802697,2011.5,2010.8,0.54755795]
[1772510783954,1.44226278,2011.8,2011.0,0.54755795]
[1772510783955,0.5802697,2011.8,2011.0,0.54755795]
[1772510784353,0.5802697,2011.6,2011.0,0.54755795]
[1772510785353,6.516,2011.7,2011.0,0.54755795]
[1772510785557,7.0962697,2011.9,2011.2,0.54755795]
[1772510785853,0.5802697,2011.8,2011.2,0.54755795]
[1772510786846,0.5802697,2012.0,2011.2,0.54755795]
[1772510791459,0.58439127,2012.1,2011.2,0.54755795]
[1772510794155,0.5802697,2012.0,2011.2,0.54755795]
[1772510794856,2.65619227,2012.0,2010.6,0.54755795]
[1772510795059,0.5802697,2011.9,2010.6,0.54755795]
[1772510796661,0.5802697,2011.7,2010.6,0.54755795]
[1772510804669,0.5802697,2011.5,2010.6,0.54755795]
[1772510806671,0.5802697,2011.5,2010.8,0.54755795]
[1772510807772,0.58484959,2011.4,2010.8,0.54755795]
[1772510813977,0.58484959,2011.4,2010.6,0.54377504]
[1772510814177,1.44249073,2011.0,2010.5,0.00549082]
[1772510814383,0.58484959,2010.9,2010.3,0.54377504]
[1772510815378,0.58484959,2010.9,2010.3,0.54994516]
[1772510816080,0.58484959,2010.9,2010.4,0.54377504]
[1772510817381,4.15657824,2011.8,2010.3,1.44866085]
[1772510817382,0.58484959,2011.4,2010.7,0.54377504]
[1772510817576,0.58484959,2011.3,2010.8,1.98626577]
[1772510817776,0.58484959,2011.3,2010.8,0.54377504]
[1772510818980,0.58484959,2011.7,2010.8,0.54377504]
[1772510819175,0.58484959,2011.5,2010.8,0.54377504]
[1772510821982,0.00412157,2012.1,2010.8,0.54377504]
[1772510822181,0.00412157,2012.1,2011.0,0.54377504]
[1772510822182,0.58484959,2011.6,2011.0,0.54377504]
[1772510822380,0.58484959,2011.5,2010.7,0.54377504]
[1772510824183,0.58484959,2011.5,2010.5,0.54377504]
[1772510824587,0.58484959,2011.4,2010.5,0.54377504]
[1772510827486,0.58484959,2011.4,2010.4,0.54377504]
[1772510827884,0.58484959,2011.4,2010.3,0.54994516]
[1772510828291,0.58484959,2011.2,2010.3,0.54994516]
[1772510832896,0.58484959,2011.2,2010.3,0.00617012]
[1772510833389,0.58484959,2011.0,2010.3,0.54994516]
[1772510835098,0.58484959,2010.9,2009.9,0.54377504]
[1772510835996,0.58484959,2010.9,2009.9,0.547733]
[1772510837794,0.55699285,2010.7,2009.9,0.547733]
[1772510841405,0.58574023,2010.9,2009.9,0.547733]
[1772510846706,0.58574023,2010.9,2010.3,0.58792805]
[1772510847203,0.58574023,2010.4,2009.6,0.58792805]
[1772510847403,0.58574023,2010.2,2009.5,0.58792805]
[1772510847603,0.58574023,2010.3,2009.9,0.58792805]
[1772510847802,0.58574023,2010.5,2009.9,0.58792805]
[1772510848407,0.58574023,2010.3,2009.9,0.0051939]
[1772510849204,0.58574023,2010.3,2009.9,0.59312195]
[1772510850508,0.58574023,2010.3,2009.6,0.58792805]
[1772510850708,0.58574023,2010.3,2009.0,6.76691]
[1772510850908,0.58574023,2010.3,2009.1,0.58792805]
[1772510851508,0.58574023,2010.3,2009.1,0.59289017]
[1772510854108,0.58574023,2010.2,2009.1,0.59289017]
[1772510859517,7.10474023,2010.2,2009.1,0.59289017]
[1772510859717,0.58574023,2010.1,2009.1,0.59289017]
[1772510866621,0.58574023,2010.2,2009.1,0.59289017]
[1772510868419,0.58574023,2010.2,2009.3,1.44426638]
[1772510868623,0.58574023,2010.2,2009.4,0.57942848]
[1772510878224,0.54231877,2010.3,2009.7,0.57942848]
[1772510878535,0.54231877,2010.8,2010.1,0.57942848]
[1772510878735,0.54231877,2010.7,2010.1,0.57942848]
[1772510879634,0.54872945,2010.7,2010.1,0.57942848]
[1772510880837,0.54872945,2010.7,2010.3,0.57942848]
[1772510882236,0.54872945,2010.7,2009.9,0.57942848]
[1772510884042,0.54872945,2010.7,2009.7,0.57942848]
[1772510885143,0.54231877,2010.5,2009.7,0.57942848]
[1772510898853,0.55721992,2010.4,2009.3,0.58088514]
[1772510899053,0.55721992,2010.2,2009.3,0.58088514]
[1772510910468,0.55721992,2010.2,2009.5,0.58088514]
[1772510912467,0.55721992,2010.2,2009.7,0.58088514]
[1772510912868,0.55721992,2010.1,2009.4,0.58088514]
[1772510916565,0.55721992,2010.1,2009.5,0.58088514]
[1772510918673,0.55721992,2010.1,2009.7,0.58088514]
[1772510924177,0.55721992,2010.1,2009.6,0.58088514]
[1772510924776,0.55721992,2010.1,2009.4,0.58088514]
[1772510925074,0.55721992,2010.1,2009.1,0.00496212]
[1772510925075,0.55721992,2009.7,2009.1,0.58584726]
[1772510925272,0.55721992,2009.5,2008.9,0.58088514]
[1772510925680,0.55721992,2009.5,2008.7,0.58088514]
[1772510926281,0.55721992,2009.3,2008.7,0.58542856]
[1772510931784,0.5815683,2009.6,2008.9,0.58703922]
[1772510933790,0.5815683,2009.6,2009.0,0.58703922]
[1772510933990,0.5815683,2009.5,2009.0,0.58703922]
[1772510934789,0.5815683,2009.5,2008.9,0.58703922]
[1772510934993,0.5815683,2009.3,2008.8,0.58703922]
[1772510936191,0.5815683,2009.3,2008.9,0.58703922]
[1772510937694,0.5815683,2009.7,2009.3,0.58703922]
[1772510938690,0.5815683,2010.3,2009.6,0.58703922]
[1772510939091,0.5815683,2010.1,2009.6,0.58703922]
[1772510939295,0.5815683,2009.9,2009.2,0.58703922]
[1772510939593,0.5815683,2009.9,2009.4,0.58703922]
[1772510940802,0.5815683,2009.7,2009.0,0.58703922]
[1772510941001,6.519,2009.9,2008.8,0.58703922]
[1772510941002,0.5815683,2009.3,2008.8,0.58703922]
[1772510944702,0.5815683,2009.3,2008.7,0.59158264]
[1772510947100,0.5815683,2009.3,2008.8,0.58703922]
[1772510951699,0.5815683,2009.5,2009.0,0.58703922]
[1772510954905,6.519,2009.7,2008.8,0.58703922]
[1772510954906,0.5815683,2009.3,2008.8,0.58703922]
[1772510956504,0.5815683,2009.5,2009.0,0.58703922]
[1772510957102,0.5815683,2009.7,2009.2,0.58703922]
[1772510957909,0.56902571,2010.0,2009.4,0.53702447]
[1772510958209,0.56902571,2009.9,2009.2,0.53702447]
[1772510958406,0.56902571,2009.7,2009.2,0.53702447]
[1772510961911,0.57129119,2009.8,2009.5,2.00950692]
[1772510962108,0.57129119,2009.8,2009.5,0.56528419]
[1772510963107,1.44422273,2010.3,2009.6,0.56528419]
[1772510963313,0.57129119,2010.1,2009.6,0.56528419]
[1772510966615,0.57129119,2010.3,2009.9,0.56528419]
[1772510969021,0.57129119,2010.3,2009.8,0.56528419]
[1772510970221,0.57129119,2010.2,2009.8,0.56528419]
[1772510972623,0.57129119,2010.2,2009.4,0.56528419]
[1772510975719,0.57129119,2010.2,2009.1,0.56528419]
[1772510975927,0.57129119,2009.6,2009.1,0.56528419]
[1772510976127,0.57129119,2009.6,2008.8,0.56528419]
[1772510977422,0.57129119,2009.1,2008.5,0.56528419]
[1772510977725,0.57129119,2008.9,2008.3,0.56528419]
[1772510978517,0.57766023,2008.9,2008.3,0.5711974]
[1772510981228,0.57766023,2008.9,2008.0,0.56528419]
[1772510981923,0.57766023,2008.9,2007.4,0.56528419]
[1772510982428,0.57766023,2008.9,2007.4,0.56933756]
[1772510982821,0.57129119,2008.7,2007.4,0.56933756]
[1772510983027,0.24894,2008.8,2007.4,0.56933756]
[1772510983028,0.57129119,2008.5,2007.4,0.56933756]
[1772510996535,6.519,2008.6,2007.4,0.56933756]
[1772510996536,0.56123623,2008.3,2007.4,0.56933756]
[1772510997337,0.56123623,2007.7,2006.4,0.54914374]
[1772510997533,0.56123623,2007.5,2006.4,0.54914374]
[1772510997834,0.56123623,2007.7,2006.6,0.54914374]
[1772510998030,7.08123623,2007.7,2006.6,0.54914374]
[1772510998435,0.56123623,2007.6,2006.6,0.55393294]
[1772510999535,0.56123623,2008.0,2006.8,0.54914374]
[1772510999931,0.56123623,2008.0,2007.0,0.54914374]
[1772511000231,0.56123623,2008.0,2007.2,0.54914374]
[1772511000731,0.56123623,2008.2,2007.2,0.54914374]
[1772511000938,0.56123623,2008.4,2007.2,0.54914374]
[1772511002932,0.56123623,2008.3,2007.2,0.54914374]
[1772511005340,0.56123623,2008.5,2007.4,0.54914374]
[1772511006042,0.56123623,2008.8,2007.6,0.54914374]
[1772511006239,0.56123623,2008.8,2007.8,0.54914374]
[1772511007239,0.00636904,2008.9,2007.8,0.54914374]
[1772511007441,0.56760527,2008.9,2007.8,0.54914374]
[1772511012742,0.00636904,2008.9,2008.0,0.54914374]
[1772511012942,0.00636904,2008.9,2008.2,0.54914374]
[1772511013142,0.00636904,2008.9,2008.2,0.55369865]
[1772511013339,0.56123623,2009.1,2008.2,0.55369865]
[1772511013540,0.56123623,2009.5,2008.2,0.55369865]
[1772511014344,0.56486673,2009.5,2008.2,0.55369865]
[1772511014642,0.56123623,2009.4,2008.2,0.55369865]
[1772511015547,0.81012623,2009.2,2008.2,0.00455491]
[1772511015842,0.56123623,2009.1,2007.9,0.54914374]
[1772511016038,0.56123623,2008.9,2007.9,0.54914374]
[1772511016644,0.56123623,2008.9,2007.7,0.54914374]
[1772511016846,0.56123623,2008.7,2007.7,0.5555427]
[1772511017044,0.56123623,2008.5,2007.7,0.5555427]
[1772511020547,0.56673255,2008.9,2007.7,0.5555427]
[1772511020748,0.56673255,2008.9,2007.8,0.56763884]
[1772511020952,4.17108982,2009.5,2008.0,0.56763884]
[1772511020953,0.56673255,2009.0,2008.0,0.56763884]
[1772511021154,0.56673255,2009.4,2008.2,0.56763884]
[1772511023850,0.0036305,2009.5,2008.1,6.52]
[1772511023851,0.57036305,2009.5,2008.4,0.56763884]
[1772511025659,0.57036305,2009.5,2008.1,6.52]
[1772511025660,0.0036305,2009.5,2008.6,0.56763884]
[1772511025861,0.56673255,2009.7,2008.8,0.56763884]
[1772511026964,0.5725657,2009.7,2008.8,0.56763884]
[1772511029064,0.00583315,2009.7,2008.8,0.56763884]
[1772511029661,0.00583315,2009.7,2008.8,2.65037663]
[1772511029866,0.00583315,2009.7,2008.9,0.56763884]
[1772511030869,0.5725657,2009.7,2008.9,0.56763884]
[1772511036767,0.5725657,2009.7,2008.7,8.60060173]
[1772511036768,0.56673255,2010.8,2009.4,0.56763884]
[1772511036972,0.56673255,2010.5,2009.5,0.56763884]
[1772511037173,0.2487,2010.8,2009.2,0.56763884]
[1772511037174,0.56673255,2010.2,2009.2,0.56763884]
[1772511037772,0.57244784,2010.2,2009.2,0.57293412]
[1772511046873,0.56673255,2009.9,2008.7,0.56763884]
[1772511047280,7.08673255,2009.9,2008.7,0.56763884]
[1772511047479,0.56673255,2009.8,2008.7,0.56763884]
[1772511048080,0.56673255,2009.8,2008.7,0.57289761]
[1772511048283,0.5480789,2009.6,2008.7,0.57289761]
[1772511052284,0.5480789,2009.6,2008.7,0.00525877]
[1772511052483,0.5480789,2009.6,2008.7,0.58898345]
[1772511053582,0.5480789,2009.5,2008.7,0.58898345]
[1772511056187,0.5480789,2009.8,2008.7,0.58898345]
[1772511061090,0.5480789,2009.3,2008.7,0.58898345]
[1772511061288,0.5480789,2009.3,2008.7,0.00525877]
[1772511062188,0.5480789,2009.3,2008.2,6.52]
[1772511062489,0.5480789,2009.3,2008.3,0.58372468]
[1772511063190,0.5480789,2009.3,2008.3,0.59006934]
[1772511063583,0.5480789,2009.0,2008.3,0.00634466]
[1772511063988,0.5480789,2009.0,2008.3,0.59006934]
[1772511064385,0.5480789,2008.8,2008.3,0.59006934]
[1772511066686,0.5480789,2008.8,2008.3,0.00634466]
[1772511066885,0.5480789,2008.8,2007.9,0.58372468]
[1772511067790,0.5480789,2008.7,2007.5,0.58372468]
[1772511067992,0.5480789,2008.5,2007.5,0.58865509]
[1772511069893,0.5480789,2008.5,2007.6,0.58372468]
[1772511073194,0.00407049,2008.7,2007.6,0.58372468]
[1772511073495,0.00407049,2008.7,2007.9,0.58372468]
[1772511076495,0.5480789,2009.5,2008.2,0.58372468]
[1772511076697,0.5480789,2009.5,2008.1,2.08060173]
[1772511076698,0.5480789,2009.5,2008.5,0.58372468]
[1772511077400,0.55430263,2009.5,2008.5,0.58372468]
[1772511084000,0.58386115,2009.2,2008.1,0.57999931]
[1772511097118,0.58386115,2009.0,2008.1,0.57999931]
[1772511111031,0.53874205,2008.8,2007.8,0.54615812]
[1772511116439,0.53874205,2008.5,2007.8,0.54615812]
[1772511117541,0.53874205,2008.3,2007.8,0.54615812]
[1772511119336,0.53874205,2008.4,2007.8,0.54615812]
[1772511120742,0.53874205,2009.0,2008.3,0.54615812]
[1772511121343,0.53874205,2008.8,2008.1,0.54615812]
[1772511123044,0.53874205,2008.7,2008.1,0.54615812]
[1772511124035,0.53874205,2008.7,2007.7,0.54615812]
[1772511124739,0.53874205,2008.5,2007.7,0.54615812]
[1772511125543,0.53874205,2008.4,2007.7,0.54615812]
[1772511127943,0.53874205,2008.3,2007.7,0.54615812]
[1772511131147,0.53874205,2008.6,2007.7,0.54615812]
[1772511132050,0.53874205,2008.8,2007.8,0.54615812]
[1772511133244,0.53874205,2009.2,2007.8,0.54615812]
[1772511133450,0.53874205,2009.0,2008.0,0.54615812]
[1772511134049,0.53874205,2009.2,2008.2,0.54615812]
[1772511134442,0.53874205,2009.4,2008.4,0.54615812]
[1772511134645,0.53874205,2009.4,2008.5,0.54615812]
[1772511135350,0.00622373,2009.5,2008.7,0.54615812]
[1772511135750,0.54496578,2009.5,2008.7,0.54615812]
[1772511137649,0.00622373,2009.5,2008.7,0.54615812]
[1772511138752,0.5840409,2009.5,2008.7,0.54615812]
[1772511141051,0.00622373,2009.5,2008.7,0.54615812]
[1772511141659,0.57781717,2009.8,2008.7,0.54615812]
[1772511142649,0.58249301,2009.8,2008.7,0.54615812]
[1772511144548,0.58249301,2009.8,2008.9,0.5419863]
[1772511144755,0.58249301,2009.8,2009.1,0.5419863]
[1772511144957,0.58249301,2009.8,2009.1,0.54785002]
[1772511148450,0.00467584,2009.8,2009.1,0.54785002]
[1772511148959,0.57781717,2010.1,2009.1,0.54785002]
[1772511149857,0.58195251,2010.1,2009.1,0.54785002]
[1772511151655,0.00413534,2010.1,2009.1,0.54785002]
[1772511154356,0.58195251,2010.1,2009.1,0.54785002]
[1772511155254,0.58195251,2010.1,2009.2,2.08019629]
[1772511155453,0.57781717,2010.4,2009.6,0.5419863]
[1772511155654,0.57781717,2010.4,2009.7,0.5419863]
[1772511156461,0.58335355,2010.4,2009.7,0.5419863]
[1772511163270,0.00553638,2010.4,2010.0,0.5419863]
[1772511163564,0.57781717,2010.6,2010.0,0.5419863]
[1772511164361,0.58277734,2010.6,2010.0,0.5419863]
[1772511166568,6.27861367,2011.0,2010.3,0.5419863]
[1772511166569,0.57781717,2011.0,2010.3,0.5419863]
[1772511166868,0.57781717,2011.0,2010.1,7.0619863]
[1772511167073,0.57781717,2011.0,2010.1,0.5419863]
[1772511167270,0.57781717,2011.0,2009.8,6.52]
[1772511167271,0.57781717,2011.0,2009.9,0.5419863]
[1772511167465,0.58187773,2011.0,2009.9,0.5419863]
[1772511168270,0.55634087,2010.8,2009.9,0.5419863]
[1772511174481,1.44387116,2010.7,2009.9,0.5419863]
[1772511174681,0.55634087,2010.6,2009.9,0.5419863]
[1772511177685,0.55634087,2010.8,2010.1,0.59408296]
[1772511179383,0.55634087,2010.8,2010.3,0.59408296]
[1772511179780,0.56040143,2011.0,2010.3,0.59408296]
[1772511180384,0.55634087,2010.8,2010.1,0.59408296]
[1772511182687,1.44387116,2010.9,2010.0,1.44387116]
[1772511182688,0.00406056,2011.0,2010.8,0.59408296]
[1772511182980,0.55933469,2011.0,2010.4,0.59408296]
[1772511183984,0.55933469,2011.0,2010.4,0.60017223]
[1772511184576,0.00299382,2011.0,2010.6,0.59408296]
[1772511184782,0.55634087,2011.3,2010.6,0.59408296]
[1772511185487,0.55634087,2010.9,2010.4,0.60017223]
[1772511185782,0.56031783,2010.9,2010.4,0.60017223]
[1772511187489,0.00397696,2010.9,2010.6,0.59408296]
[1772511187982,0.56031783,2010.9,2010.6,0.59408296]
[1772511188684,0.56031783,2010.9,2010.4,0.00608927]
[1772511188885,0.56031783,2010.9,2010.4,0.60017223]
[1772511191483,0.00397696,2010.9,2010.4,0.60017223]
[1772511191982,0.56031783,2010.9,2010.4,0.60017223]
[1772511196087,0.00397696,2010.9,2010.4,0.60017223]
[1772511196289,0.55634087,2011.1,2010.6,0.59408296]
[1772511196589,0.55634087,2011.4,2010.8,0.59408296]
[1772511197290,0.5618749,2011.4,2010.8,0.59408296]
[1772511198489,0.55652255,2011.3,2010.8,0.59408296]
[1772511203897,0.55652255,2011.3,2010.9,0.57967519]
[1772511204895,0.55652255,2011.5,2010.9,0.57967519]
[1772511205199,0.55652255,2011.7,2011.3,0.57967519]
[1772511205998,0.56134859,2011.7,2011.1,0.57967519]
[1772511206199,0.55652255,2011.6,2011.1,0.57967519]
[1772511207892,0.56134859,2011.7,2011.1,0.57967519]
[1772511208601,0.56134859,2011.7,2011.3,0.57967519]
[1772511209503,0.00482604,2011.7,2011.3,0.57967519]
[1772511209697,0.56134859,2011.7,2011.3,0.57967519]
[1772511214605,0.00482604,2011.7,2011.3,0.57967519]
[1772511215104,0.55652255,2012.2,2011.5,0.57967519]
[1772511215406,0.55652255,2012.2,2011.8,0.57967519]
[1772511215604,0.55652255,2012.4,2011.8,0.57967519]
[1772511216106,0.56119647,2012.4,2011.8,0.57967519]
[1772511217804,0.55652255,2012.9,2012.2,0.57967519]
[1772511218404,0.55652255,2012.8,2012.1,0.57967519]
[1772511219007,0.56181024,2012.8,2012.1,0.58610933]
[1772511224206,0.56181024,2012.8,2011.3,0.57967519]
[1772511224207,0.55652255,2012.7,2011.3,0.57967519]
[1772511224408,0.55652255,2012.2,2011.5,0.57967519]
[1772511224712,0.55652255,2012.6,2011.5,0.57967519]
[1772511225312,0.55652255,2012.6,2011.5,0.58504]
[1772511225611,0.55652255,2012.4,2011.5,0.58504]
[1772511235314,0.55115088,2012.2,2011.5,0.58504]
[1772511235513,0.55115088,2012.0,2011.5,0.58504]
[1772511236813,0.55115088,2012.2,2011.5,0.58504]
[1772511241418,0.55115088,2012.2,2011.5,0.00536481]
[1772511241722,0.55115088,2011.8,2011.0,0.59082539]
[1772511242123,0.55115088,2012.3,2011.0,0.59082539]
[1772511242324,0.55115088,2012.2,2011.0,0.59082539]
[1772511242525,0.55115088,2012.2,2011.0,0.5958982]
[1772511246829,0.55115088,2012.1,2011.0,0.5958982]
[1772511253636,0.55115088,2011.7,2011.0,0.00507281]
[1772511255338,0.55115088,2011.5,2010.7,7.10482539]
[1772511256538,0.55115088,2011.5,2010.7,7.10907806]
[1772511257039,0.55115088,2011.5,2010.7,0.00425267]
[1772511257730,0.55115088,2011.5,2010.7,0.55875882]
[1772511257936,0.59108721,2011.1,2010.1,0.55450615]
[1772511258134,0.59108721,2010.9,2009.9,0.55450615]
[1772511259036,0.59585273,2010.9,2009.9,0.55866527]
[1772511259232,0.59585273,2010.9,2009.9,0.00415912]
[1772511259233,0.55531799,2010.7,2009.9,0.00415912]
[1772511259429,0.55531799,2010.5,2009.6,0.54843189]
[1772511259639,0.55531799,2010.4,2009.6,0.54843189]
[1772511260436,0.55531799,2010.4,2009.6,0.55409604]
[1772511262742,0.55531799,2010.3,2009.6,0.55409604]
[1772511276553,0.55531799,2010.1,2009.2,0.54843189]
[1772511276855,0.55531799,2009.9,2009.2,0.54843189]
[1772511277456,0.55531799,2009.9,2009.2,0.55270486]
[1772511278346,0.55531799,2010.1,2009.2,0.55270486]
[1772511280558,0.55531799,2009.9,2009.2,0.55270486]
[1772511282860,0.55531799,2009.7,2009.2,0.55270486]
[1772511285062,1.44484104,2010.0,2009.2,0.55270486]
[1772511285258,0.55531799,2009.9,2009.2,0.55270486]
[1772511288560,0.5789329,2009.2,2008.9,0.5726092]
[1772511288767,0.5789329,2009.2,2008.7,0.31701687]
[1772511289568,0.58461564,2009.2,2008.7,0.32195895]
[1772511290867,0.58461564,2009.2,2008.7,0.00494208]
[1772511291069,0.58461564,2009.2,2008.7,0.32111214]
[1772511292667,0.58461564,2009.2,2008.7,0.00494208]
[1772511293170,0.58461564,2009.2,2008.7,0.32137781]
[1772511296172,0.00568274,2009.2,2008.8,0.3174241]
[1772511296769,0.58461564,2009.2,2008.8,0.3174241]
[1772511297273,0.00568274,2009.2,2008.8,0.3174241]
[1772511297673,0.5789329,2009.4,2008.8,0.3174241]
[1772511297876,0.5789329,2009.4,2009.0,0.31185735]
[1772511298870,0.58382523,2009.4,2009.0,0.31185735]
[1772511299467,1.44484104,2009.7,2008.7,0.00494208]
[1772511299468,0.5789329,2009.7,2009.2,0.31465838]
[1772511299671,0.5789329,2009.7,2009.3,0.31465838]
[1772511300668,0.58288144,2009.7,2009.3,0.31465838]
[1772511301374,0.5789329,2009.9,2009.5,0.31188702]
[1772511301569,0.5789329,2009.9,2009.3,0.31188702]
[1772511301873,0.5789329,2009.8,2009.1,0.31188702]
[1772511302071,0.24877,2010.3,2009.0,7.96484104]
[1772511302072,0.5789329,2009.6,2009.0,6.83188702]
[1772511302269,0.5789329,2009.6,2009.1,0.31188702]
[1772511302472,0.58519948,2009.6,2009.1,0.31188702]
[1772511305174,0.5789329,2010.0,2009.5,0.30530735]
[1772511305776,1.44484104,2010.3,2009.5,0.30530735]
[1772511305777,0.5789329,2010.2,2009.5,0.30530735]
[1772511305978,0.58408826,2010.2,2009.5,0.30530735]
[1772511306376,0.58408826,2010.2,2009.9,0.30574306]
[1772511306578,0.5789329,2010.4,2010.1,0.5726092]
[1772511307181,0.5789329,2010.4,2009.9,0.5726092]
[1772511307477,0.58391892,2010.4,2009.9,0.5726092]
[1772511308172,0.58391892,2010.4,2009.8,6.52]
[1772511308475,0.5789329,2010.2,2009.6,0.5726092]
[1772511311776,0.5789329,2010.2,2009.5,6.52]
[1772511312277,0.5789329,2010.2,2009.5,7.0926092]
[1772511313379,0.5789329,2010.2,2009.6,0.5726092]
[1772511316182,0.5789329,2010.2,2009.5,6.52]
[1772511316883,0.5789329,2010.2,2009.5,7.0926092]
[1772511317573,0.5789329,2010.2,2009.6,0.59255156]
[1772511321483,0.5789329,2010.2,2009.5,6.52]
[1772511322384,0.5789329,2010.2,2009.4,0.5807934]
[1772511322788,0.5789329,2010.2,2009.3,7.1007934]
[1772511323190,0.5789329,2010.2,2009.4,0.5807934]
[1772511327991,0.54082398,2010.3,2009.4,0.5807934]
[1772511328391,0.54581,2010.4,2009.4,0.5807934]
[1772511329490,0.54581,2010.4,2009.3,8.59997563]
[1772511329491,0.54082398,2010.7,2009.7,0.5807934]
[1772511329691,0.54082398,2010.7,2009.9,0.5807934]
[1772511330486,0.54082398,2010.4,2009.9,0.5807934]
[1772511331588,0.54082398,2010.4,2009.8,6.52]
[1772511331798,0.54082398,2010.2,2009.7,0.5807934]
[1772511331987,0.54082398,2009.8,2009.5,0.5807934]
[1772511332189,0.54082398,2010.0,2009.5,0.5807934]
[1772511335292,0.54082398,2010.2,2009.6,0.5807934]
[1772511338589,0.54082398,2010.2,2009.8,0.5807934]
[1772511339993,0.54082398,2010.4,2009.8,0.5807934]
[1772511340894,0.54082398,2010.4,2009.3,0.5807934]
[1772511342896,0.54082398,2010.3,2009.3,0.5807934]
[1772511343497,0.54082398,2010.1,2009.3,0.5807934]
[1772511346203,0.54082398,2010.6,2009.5,0.5807934]
[1772511346402,0.54082398,2010.5,2009.5,0.5807934]
[1772511350206,0.54082398,2010.5,2009.4,6.52]
[1772511350207,0.56161006,2010.3,2009.4,7.09516182]
[1772511351106,0.56161006,2010.3,2008.7,6.44294208]
[1772511351107,0.56161006,2010.3,2009.1,0.57516182]
[1772511356507,0.56161006,2010.1,2009.1,0.57516182]
[1772511356712,0.56161006,2010.0,2009.1,0.57516182]
[1772511356909,0.56161006,2009.8,2009.0,0.57516182]
[1772511358610,0.56161006,2009.8,2008.8,0.57516182]
[1772511359910,0.56161006,2009.6,2008.8,0.57516182]
[1772511360513,0.56161006,2009.6,2008.7,0.00494208]
[1772511360514,0.56161006,2009.4,2008.7,0.00494208]
[1772511360712,0.56161006,2009.4,2008.7,0.5801039]
[1772511362518,0.56161006,2009.4,2008.7,0.00494208]
[1772511363217,0.56161006,2009.4,2008.7,0.5801039]
[1772511366518,0.56161006,2009.5,2008.7,0.5801039]
[1772511367819,4.15453109,2010.3,2008.7,0.5801039]
[1772511367820,0.56161006,2009.9,2008.7,0.5801039]
[1772511368417,0.56161006,2009.9,2008.8,0.24894]
[1772511368618,0.56161006,2010.4,2009.0,0.57516182]
[1772511373824,0.56161006,2010.2,2009.0,0.57516182]
[1772511374730,6.80682696,2010.2,2009.0,0.57516182]
[1772511374927,0.56161006,2010.0,2009.0,0.57516182]
[1772511379323,0.55051302,2010.2,2009.0,0.57516182]
[1772511379729,0.55051302,2010.2,2009.1,0.56396196]
[1772511384328,0.55051302,2010.1,2009.1,0.56396196]
[1772511387737,0.55051302,2009.5,2008.7,0.00494208]
[1772511391034,0.55051302,2009.3,2008.4,0.56396196]
[1772511391640,0.55051302,2009.1,2008.3,0.56396196]
[1772511391933,0.55051302,2009.1,2008.2,0.56396196]
[1772511392130,0.55514803,2009.1,2008.2,0.56954558]
[1772511393730,0.55514803,2009.1,2008.2,0.00558362]
[1772511393935,0.55051302,2008.9,2008.2,0.00558362]
[1772511394438,0.55051302,2008.5,2007.2,0.56396196]
[1772511395239,0.55051302,2008.5,2007.2,0.5685858]
[1772511399036,0.55051302,2008.4,2007.2,0.5685858]
[1772511402647,0.55051302,2008.2,2007.2,0.5685858]